bitfinex-derivatives/quotes_SOLF0:USTF0_20240923
["timestamp","ask_amount","ask_price","bid_price","bid_amount"]
[1727090044556,15.2101,143.27,143.24,3.4907]
[1727090044756,11.72,143.27,143.23,4.2039]
[1727090045256,3.4904,143.26,143.23,7.6949]
[1727090045450,3.56629948,143.34,143.16,83.78]
[1727090045451,11.72,143.25,143.16,83.78]
[1727090045656,11.72,143.25,143.17,4.2664]
[1727090045860,3.4909,143.24,143.17,4.2664]
[1727090046353,11.72,143.25,143.17,4.2664]
[1727090046757,11.72,143.28,143.17,4.2664]
[1727090046758,3.4911,143.23,143.17,4.2664]
[1727090048259,11.72,143.26,143.17,4.2664]
[1727090048459,11.72,143.26,143.17,15.9864]
[1727090048655,11.72,143.28,143.19,11.72]
[1727090049457,3.4902,143.27,143.24,3.4906]
[1727090049861,11.72,143.3,143.21,11.72]
[1727090050163,11.72,143.31,143.22,11.72]
[1727090050457,6.975,143.38,143.15,59.35674646]
[1727090050458,11.72,143.29,143.23,2.7627]
[1727090050669,11.72,143.28,143.18,11.72]
[1727090051560,3.4907,143.25,143.22,3.4911]
[1727090053163,3.4904,143.26,143.18,11.72]
[1727090053357,11.72,143.28,143.18,11.72]
[1727090054751,11.72,143.26,143.16,4.2089]
[1727090054963,11.72,143.24,143.16,4.2089]
[1727090055460,11.72,143.24,143.14,11.72]
[1727090055660,3.4922,143.19,143.15,3.4928]
[1727090056164,3.4922,143.19,143.13,2.8847]
[1727090056353,3.4923,143.18,143.13,2.8847]
[1727090056966,3.4919,143.2,143.13,2.8847]
[1727090057460,11.72,143.22,143.13,2.8847]
[1727090057658,3.4922,143.18,143.15,3.493]
[1727090057963,11.72,143.22,143.13,2.8847]
[1727090058564,3.4921,143.19,143.15,3.4929]
[1727090059071,11.72,143.21,143.13,2.8847]
[1727090059261,11.72,143.21,143.14,3.4931]
[1727090059262,3.4924,143.18,143.14,3.4931]
[1727090059969,3.4926,143.17,143.13,2.8847]
[1727090060268,11.72,143.21,143.13,2.8847]
[1727090060468,11.72,143.21,143.16,3.4927]
[1727090060669,11.72,143.21,143.13,2.8847]
[1727090061167,11.72,143.21,143.17,3.4924]
[1727090061368,11.72,143.21,143.13,2.8847]
[1727090061369,11.72,143.23,143.14,11.72]
[1727090061769,3.4918,143.2,143.17,3.4923]
[1727090061970,11.72,143.23,143.14,11.72]
[1727090062969,3.4919,143.2,143.17,3.4923]
[1727090065671,11.72,143.23,143.14,11.72]
[1727090066175,11.72,143.23,143.2,3.4917]
[1727090066375,11.72,143.23,143.14,11.72]
[1727090067369,3.4914,143.22,143.14,11.72]
[1727090067874,3.4914,143.22,143.19,3.4918]
[1727090068475,15.2111,143.23,143.14,11.72]
[1727090068773,11.72,143.27,143.18,11.72]
[1727090068970,11.72,143.27,143.19,2.7989]
[1727090070075,3.4905,143.26,143.22,3.4911]
[1727090070270,11.72,143.27,143.22,3.4911]
[1727090070972,90.8172,143.34,143.19,6.26309549]
[1727090071173,11.72,143.28,143.2,1.4132]
[1727090071472,11.72,143.28,143.2,4.94586199]
[1727090071671,11.72,143.28,143.2,1.4132]
[1727090071877,11.72,143.26,143.2,1.4132]
[1727090072379,15.2105,143.26,143.22,3.4911]
[1727090073580,15.2105,143.26,143.23,3.491]
[1727090076277,3.4905,143.25,143.22,3.4912]
[1727090076580,11.72,143.24,143.19,2.7989]
[1727090076772,3.4911,143.23,143.2,3.4915]
[1727090077167,11.72,143.24,143.15,1.4512]
[1727090077479,11.72,143.24,143.15,2.9089]
[1727090078179,3.4911,143.23,143.2,3.4917]
[1727090078380,11.72,143.24,143.15,2.9089]
[1727090079178,3.4911,143.23,143.2,3.4916]
[1727090079768,3.4914,143.22,143.15,2.9089]
[1727090080473,3.4911,143.23,143.15,2.9089]
[1727090080872,3.4911,143.23,143.19,3.4918]
[1727090082179,3.4911,143.23,143.2,3.4917]
[1727090082979,3.4913,143.22,143.19,3.4919]
[1727090083279,11.72,143.24,143.15,2.9089]
[1727090083778,3.4911,143.23,143.19,3.4917]
[1727090083978,3.4911,143.23,143.15,2.9089]
[1727090084368,3.4911,143.23,143.15,9.43809407]
[1727090084582,3.4911,143.23,143.15,2.9089]
[1727090085882,3.4911,143.23,143.2,3.4916]
[1727090086484,3.4913,143.22,143.19,3.4919]
[1727090088179,11.72,143.24,143.15,9.44626278]
[1727090088180,3.57941053,143.27,143.16,11.72]
[1727090088375,11.72,143.26,143.16,11.72]
[1727090088882,3.4907,143.25,143.16,11.72]
[1727090089882,3.4907,143.25,143.22,3.4912]
[1727090090791,3.4907,143.25,143.21,3.4914]
[1727090090986,11.72,143.26,143.16,11.72]
[1727090091188,11.72,143.26,143.2,3.4916]
[1727090091385,3.491,143.23,143.2,3.4916]
[1727090091687,11.72,143.26,143.2,3.4916]
[1727090091887,3.491,143.24,143.2,3.4916]
[1727090093189,3.491,143.23,143.2,3.4916]
[1727090094290,11.001,143.23,143.2,3.4916]
[1727090095984,7.51,143.23,143.2,3.4916]
[1727090096685,11.001,143.23,143.2,3.4916]
[1727090100283,7.51,143.23,143.18,7.51]
[1727090100501,7.51,143.26,143.21,7.51]
[1727090100689,7.51,143.24,143.19,8.8492]
[1727090100890,11.0009,143.24,143.21,3.4914]
[1727090101290,7.51,143.23,143.21,3.4914]
[1727090101896,7.51,143.22,143.19,1.3392]
[1727090102196,7.51,143.21,143.16,14.05382279]
[1727090102398,3.40959899,143.26,143.19,3.4919]
[1727090102593,7.51,143.22,143.19,3.4919]
[1727090103391,7.51,143.2,143.15,2.9089]
[1727090103601,7.51,143.19,143.15,2.9089]
[1727090103893,7.51,143.19,143.15,10.4189]
[1727090104095,7.51,143.21,143.15,10.4189]
[1727090104293,7.51,143.21,143.16,7.51]
[1727090104997,7.51,143.21,143.18,3.4921]
[1727090105895,11.0017,143.21,143.18,3.4921]
[1727090107996,6.9792,143.29,143.18,7.51]
[1727090108195,3.5569063,143.29,143.18,7.51]
[1727090108395,7.51,143.23,143.18,7.51]
[1727090108598,3.4913,143.22,143.19,3.4918]
[1727090108796,7.51,143.23,143.18,7.51]
[1727090109097,11.0011,143.23,143.2,3.4917]
[1727090110797,11.0015,143.22,143.19,3.4918]
[1727090111000,7.51,143.22,143.18,7.51]
[1727090111193,6.9773,143.33,143.2,7.51]
[1727090111395,6.9752,143.38,143.22,7.51]
[1727090111602,7.51,143.27,143.22,7.51]
[1727090111796,6.9752,143.38,143.25,7.51]
[1727090112101,6.9752,143.38,143.22,1.3485]
[1727090112102,7.51,143.28,143.22,1.3485]
[1727090112405,6.9752,143.38,143.22,8.8585]
[1727090112406,7.51,143.27,143.22,8.8585]
[1727090112602,7.51,143.28,143.22,8.8585]
[1727090112804,6.9752,143.38,143.22,8.8585]
[1727090113303,6.9752,143.38,143.25,7.51]
[1727090113503,6.9752,143.38,143.22,1.3485]
[1727090113504,103.50825213,143.43,143.28,7.51]
[1727090113696,103.50825213,143.43,143.22,1.3485]
[1727090113697,96.53575213,143.43,143.29,7.51]
[1727090113893,7.51,143.35,143.32,3.4886]
[1727090114097,7.51,143.35,143.3,7.51]
[1727090114398,7.51,143.35,143.32,3.4887]
[1727090114596,7.51,143.33,143.26,8.9259]
[1727090114905,7.51,143.28,143.26,3.4902]
[1727090115109,7.51,143.29,143.25,1.3319]
[1727090115597,7.51,143.29,143.27,3.4899]
[1727090116204,3.4887,143.33,143.28,3.4898]
[1727090116500,11.72,143.33,143.28,3.4898]
[1727090116906,3.4888,143.32,143.28,3.4898]
[1727090118407,3.4888,143.32,143.25,1.3319]
[1727090118801,3.4888,143.32,143.28,3.4897]
[1727090119198,3.4891,143.31,143.28,3.4897]
[1727090119507,11.72,143.33,143.29,3.4895]
[1727090120907,3.4889,143.32,143.28,3.4897]
[1727090121202,11.72,143.33,143.25,1.3319]
[1727090121802,11.72,143.33,143.27,3.4899]
[1727090122407,3.4894,143.3,143.27,3.4899]
[1727090123107,3.4896,143.29,143.26,3.4902]
[1727090123809,3.4894,143.3,143.26,3.4902]
[1727090124410,3.4894,143.3,143.27,3.49]
[1727090125213,3.4892,143.31,143.27,3.49]
[1727090126011,3.4892,143.31,143.25,1.3319]
[1727090126411,11.72,143.33,143.28,3.4896]
[1727090126811,3.4892,143.31,143.25,1.3319]
[1727090127012,11.72,143.33,143.27,3.4899]
[1727090127411,3.4893,143.3,143.27,3.4899]
[1727090128218,3.56794508,143.35,143.25,4.8224]
[1727090128219,11.72,143.31,143.25,4.8224]
[1727090128810,3.4897,143.29,143.25,4.8224]
[1727090129014,3.4897,143.29,143.26,3.4902]
[1727090129312,3.4894,143.3,143.25,1.3319]
[1727090129713,3.4894,143.3,143.27,3.4899]
[1727090131127,11.72,143.35,143.29,3.4895]
[1727090131625,3.489,143.32,143.29,3.4895]
[1727090132626,3.4891,143.31,143.28,3.4897]
[1727090133222,3.4894,143.3,143.27,3.49]
[1727090133818,11.72,143.31,143.25,1.3319]
[1727090134923,3.4896,143.29,143.26,3.4901]
[1727090135520,6.9741,143.4,143.26,11.72]
[1727090135719,11.72,143.37,143.28,11.72]
[1727090135922,3.4882,143.35,143.31,3.4889]
[1727090136124,3.4882,143.35,143.29,1.3374]
[1727090136822,3.4883,143.34,143.32,3.4888]
[1727090137030,11.72,143.37,143.29,1.3374]
[1727090138124,13.9388,143.5,143.29,1.3374]
[1727090138125,6.9692,143.5,143.35,11.72]
[1727090138325,11.72,143.45,143.37,11.72]
[1727090138530,11.72,143.45,143.39,3.4869]
[1727090138725,11.72,143.44,143.36,2.7905]
[1727090138923,11.72,143.41,143.34,3.55138833]
[1727090139129,3.4873,143.39,143.35,3.488]
[1727090141026,3.4873,143.39,143.33,11.72]
[1727090141027,3.4874,143.38,143.34,3.4881]
[1727090141935,3.4874,143.38,143.31,14.5105]
[1727090142327,3.4874,143.38,143.33,11.72]
[1727090142631,3.4874,143.38,143.34,3.4881]
[1727090143430,3.4874,143.38,143.33,11.72]
[1727090143431,3.4874,143.38,143.35,3.4881]
[1727090144036,11.72,143.41,143.36,3.4878]
[1727090144229,11.72,143.43,143.33,11.72]
[1727090144534,11.72,143.43,143.31,2.7905]
[1727090144535,11.72,143.43,143.35,11.72]
[1727090144733,11.72,143.43,143.37,3.4874]
[1727090144934,83.76,143.52,143.35,11.72]
[1727090145230,11.72,143.46,143.39,3.487]
[1727090145430,3.40672761,143.45,143.37,11.72]
[1727090145637,11.72,143.47,143.38,14.5086]
[1727090146434,11.72,143.47,143.4,3.4867]
[1727090148036,3.4863,143.43,143.4,3.4867]
[1727090148626,3.4859,143.45,143.41,3.4865]
[1727090148833,11.72,143.47,143.41,3.4865]
[1727090149735,3.4861,143.44,143.41,3.4865]
[1727090150329,11.72,143.42,143.33,1.4469]
[1727090150531,11.72,143.42,143.33,13.1669]
[1727090151229,3.4873,143.39,143.36,3.4877]
[1727090151430,11.72,143.49,143.35,11.72]
[1727090151431,11.72,143.44,143.35,11.72]
[1727090152329,3.4867,143.41,143.38,3.4872]
[1727090152839,3.4865,143.42,143.39,3.4871]
[1727090154736,11.72,143.46,143.38,11.72]
[1727090154927,3.4861,143.44,143.4,3.4867]
[1727090155133,3.4861,143.44,143.38,13.1185]
[1727090156234,3.4857,143.45,143.39,1.3712]
[1727090156440,11.72,143.48,143.4,11.72]
[1727090157939,3.4858,143.45,143.42,3.4863]
[1727090158542,3.4852,143.47,143.44,3.4858]
[1727090158738,11.72,143.52,143.42,11.72]
[1727090159041,3.4856,143.46,143.43,3.486]
[1727090159631,11.72,143.48,143.39,14.4597]
[1727090160035,15.14447914,143.48,143.39,14.4597]
[1727090160238,11.72,143.48,143.4,11.72]
[1727090160735,3.486,143.44,143.41,3.4866]
[1727090160940,11.72,143.44,143.28,6.9793]
[1727090161239,11.72,143.44,143.35,1.4576]
[1727090161447,3.4868,143.41,143.37,3.4874]
[1727090161647,11.72,143.46,143.37,11.72]
[1727090161940,11.72,143.44,143.35,13.1776]
[1727090162245,11.72,143.49,143.35,1.4576]
[1727090162246,11.72,143.42,143.35,1.4576]
[1727090162442,11.72,143.49,143.35,8.9676]
[1727090162443,7.51,143.4,143.35,8.9676]
[1727090163345,3.4874,143.38,143.35,12.4555]
[1727090163549,7.51,143.4,143.35,8.9676]
[1727090163843,7.51,143.4,143.36,7.51]
[1727090164046,7.51,143.41,143.37,7.51]
[1727090164242,7.51,143.42,143.37,7.51]
[1727090164441,11.72,143.44,143.35,13.1776]
[1727090164635,3.4868,143.41,143.37,3.4875]
[1727090166548,3.4868,143.41,143.38,3.4873]
[1727090168145,3.4865,143.42,143.39,3.4871]
[1727090168648,11.72,143.46,143.37,11.72]
[1727090169545,3.4865,143.42,143.39,3.487]
[1727090170143,3.4862,143.43,143.4,3.4869]
[1727090171448,3.4862,143.43,143.39,3.487]
[1727090171645,3.4864,143.42,143.39,3.487]
[1727090172447,3.4866,143.41,143.38,4.8403]
[1727090174354,3.4865,143.42,143.38,4.8403]
[1727090175060,11.72,143.42,143.35,1.4576]
[1727090175548,11.72,143.41,143.35,1.4576]
[1727090176060,3.4884,143.34,143.3,3.4891]
[1727090176262,11.72,143.39,143.3,3.4891]
[1727090176760,15.21100066,143.39,143.3,3.4891]
[1727090176958,3.4885,143.34,143.3,3.4891]
[1727090177362,15.21100066,143.39,143.3,3.4891]
[1727090177563,3.4887,143.33,143.29,18.0427]
[1727090178557,3.4883,143.35,143.29,14.5533]
[1727090178762,3.43732024,143.38,143.29,14.5533]
[1727090178963,11.72,143.35,143.26,1.378]
[1727090179461,11.72,143.33,143.26,1.378]
[1727090180258,3.4891,143.31,143.26,1.378]
[1727090180861,3.489,143.32,143.28,3.4898]
[1727090181562,3.4886,143.33,143.29,15.2095]
[1727090182760,3.41641478,143.37,143.29,15.2095]
[1727090182966,11.72,143.36,143.28,3.4897]
[1727090183366,3.4893,143.3,143.26,1.378]
[1727090183864,3.4891,143.31,143.26,1.378]
[1727090184066,11.72,143.34,143.27,3.4899]
[1727090184560,3.4892,143.31,143.27,3.4899]
[1727090186966,11.72,143.34,143.27,3.4899]
[1727090186967,3.4889,143.32,143.28,3.4898]
[1727090188562,3.4891,143.31,143.28,3.4898]
[1727090189171,3.4889,143.32,143.29,3.4894]
[1727090189763,3.4887,143.33,143.3,3.4893]
[1727090189966,11.72,143.36,143.27,11.72]
[1727090190573,11.72,143.34,143.26,1.378]
[1727090190765,11.72,143.34,143.25,11.72]
[1727090190971,3.4905,143.26,143.23,6.3009]
[1727090191272,11.72,143.3,143.23,2.8101]
[1727090191973,11.72,143.3,143.23,6.3009]
[1727090192577,3.4902,143.27,143.23,6.3009]
[1727090192776,11.72,143.3,143.23,6.3009]
[1727090193172,3.4904,143.26,143.23,6.3009]
[1727090195577,11.72,143.3,143.1,225.0]
[1727090195874,11.72,143.26,143.16,11.72]
[1727090196284,11.72,143.26,143.17,3.4923]
[1727090196580,11.72,143.26,143.16,11.72]
[1727090196779,3.4912,143.23,143.19,3.4919]
[1727090197277,3.53107541,143.33,143.18,3.4921]
[1727090197579,11.72,143.26,143.18,3.4921]
[1727090198570,3.4911,143.23,143.18,11.72]
[1727090199875,11.72,143.29,143.21,3.4915]
[1727090200480,3.4908,143.24,143.21,3.4915]
[1727090200680,11.72,143.29,143.22,3.4912]
[1727090200883,96.61626125,143.3,143.22,11.72]
[1727090201290,96.61626125,143.3,143.24,11.72]
[1727090201593,3.4902,143.27,143.24,11.72]
[1727090201890,3.4902,143.27,143.18,11.72]
[1727090201891,3.4902,143.27,143.23,3.4908]
[1727090202589,3.4899,143.28,143.24,11.72]
[1727090203191,3.4901,143.27,143.24,15.2107]
[1727090203690,96.61626125,143.3,143.25,3.4904]
[1727090203691,3.4899,143.28,143.25,3.4904]
[1727090204098,96.61626125,143.3,143.24,11.72]
[1727090204400,3.4897,143.29,143.26,3.4902]
[1727090205095,11.72,143.33,143.24,11.72]
[1727090205299,11.72,143.31,143.22,11.72]
[1727090205896,15.2132607,143.33,143.24,11.72]
[1727090206097,11.72,143.33,143.24,11.72]
[1727090206301,11.72,143.33,143.25,3.4905]
[1727090206497,11.72,143.33,143.24,11.72]
[1727090206698,3.4897,143.29,143.26,3.4903]
[1727090207998,11.72,143.33,143.24,11.72]
[1727090208595,3.4898,143.28,143.24,11.72]
[1727090209602,3.4898,143.28,143.25,3.4904]
[1727090210202,3.4901,143.27,143.23,2.9208]
[1727090210506,11.72,143.31,143.23,2.9208]
[1727090211403,11.72,143.31,143.23,6.4117]
[1727090212204,11.72,143.29,143.23,2.9208]
[1727090213207,3.4907,143.25,143.23,2.9208]
[1727090213799,3.4904,143.26,143.23,2.9208]
[1727090214910,3.4901,143.27,143.24,3.4907]
[1727090220215,3.4903,143.26,143.23,6.4117]
[1727090220822,3.4907,143.25,143.22,3.4911]
[1727090221312,3.4907,143.25,143.2,11.72]
[1727090221313,3.4904,143.26,143.23,3.4909]
[1727090221514,3.50698324,143.34,143.22,11.72]
[1727090221515,11.72,143.31,143.22,11.72]
[1727090221724,11.72,143.33,143.26,11.72]
[1727090222016,11.72,143.33,143.23,11.72]
[1727090222213,11.72,143.33,143.25,11.72]
[1727090222512,83.8,143.38,143.27,11.72]
[1727090222513,11.72,143.36,143.27,11.72]
[1727090222722,11.72,143.36,143.28,1.3747]
[1727090223821,3.4887,143.33,143.3,3.4892]
[1727090225619,11.72,143.36,143.28,1.3747]
[1727090225918,11.72,143.34,143.28,1.3747]
[1727090226714,3.489,143.32,143.29,3.4895]
[1727090226913,3.489,143.32,143.28,1.3747]
[1727090227318,3.4892,143.31,143.28,4.8644]
[1727090228018,3.4892,143.31,143.28,1.3747]
[1727090230022,11.72,143.32,143.26,1.4471]
[1727090230517,3.4898,143.29,143.26,1.4471]
[1727090230917,11.72,143.32,143.26,1.4471]
[1727090231117,3.4897,143.29,143.26,1.4471]
[1727090232319,3.4905,143.25,143.2,2.8177]
[1727090232520,11.72,143.3,143.21,13.1549]
[1727090233124,3.4904,143.26,143.23,3.491]
[1727090233719,11.72,143.3,143.21,13.1549]
[1727090234320,3.4909,143.24,143.21,16.6463]
[1727090235523,11.72,143.28,143.2,1.3821]
[1727090236125,11.72,143.26,143.17,1.3932]
[1727090236323,3.56210526,143.25,143.17,1.3932]
[1727090236523,3.4917,143.21,143.17,1.3932]
[1727090236824,11.72,143.26,143.17,1.3932]
[1727090237225,11.72,143.26,143.19,3.4918]
[1727090237226,3.4912,143.23,143.19,3.4918]
[1727090238027,3.4909,143.24,143.2,3.4917]
[1727090238223,11.72,143.28,143.18,11.72]
[1727090238426,11.72,143.28,143.19,3.4919]
[1727090238819,3.43520202,143.27,143.19,3.4919]
[1727090239026,3.4912,143.23,143.19,3.4919]
[1727090239225,3.4912,143.23,143.2,3.4917]
[1727090240422,3.43520202,143.27,143.18,11.72]
[1727090240626,11.72,143.28,143.18,11.72]
[1727090240827,3.49842874,143.27,143.18,11.72]
[1727090241023,3.4912,143.23,143.18,11.72]
[1727090241225,3.4912,143.23,143.19,3.4918]
[1727090241931,3.4912,143.23,143.2,3.4916]
[1727090242736,3.4912,143.23,143.18,11.72]
[1727090243429,3.4909,143.24,143.18,11.72]
[1727090243632,3.4909,143.24,143.19,1.456]
[1727090243833,3.5619979,143.27,143.19,1.456]
[1727090244335,3.5619979,143.27,143.2,3.4917]
[1727090245230,3.5619979,143.27,143.17,1.3932]
[1727090245231,11.72,143.24,143.17,1.3932]
[1727090245626,11.72,143.24,143.17,4.8856]
[1727090245627,3.4919,143.2,143.17,4.8856]
[1727090246033,3.4913,143.22,143.17,1.3932]
[1727090246228,11.72,143.26,143.2,3.4917]
[1727090246430,11.72,143.26,143.17,1.3932]
[1727090246632,3.4914,143.22,143.17,1.3932]
[1727090246938,11.72,143.26,143.17,1.3932]
[1727090247135,11.72,143.24,143.17,1.3932]
[1727090247334,11.72,143.24,143.17,4.8855]
[1727090247639,11.72,143.24,143.17,1.3932]
[1727090248129,83.8,143.36,143.17,1.3932]
[1727090248330,11.72,143.31,143.18,2.8241]
[1727090248535,3.56953272,143.3,143.18,2.8241]
[1727090248737,3.56953272,143.3,143.2,11.72]
[1727090249037,3.49,143.28,143.23,3.491]
[1727090249427,11.72,143.31,143.22,11.72]
[1727090249828,3.4897,143.29,143.24,3.4906]
[1727090250540,3.4898,143.28,143.24,3.4906]
[1727090250933,3.4903,143.27,143.22,3.491]
[1727090251231,3.4903,143.27,143.2,11.72]
[1727090252038,3.4899,143.28,143.23,3.4908]
[1727090252433,3.4899,143.28,143.24,3.4907]
[1727090255235,11.72,143.33,143.24,11.72]
[1727090255438,11.72,143.33,143.26,11.72]
[1727090255638,3.44286911,143.33,143.26,3.4902]
[1727090255940,3.4895,143.3,143.25,2.7361]
[1727090256142,11.72,143.34,143.25,2.7361]
[1727090256341,10.9984,143.34,143.29,7.51]
[1727090256540,7.51,143.35,143.3,7.51]
[1727090257045,6.971,143.46,143.33,7.51]
[1727090257240,7.51,143.38,143.33,7.51]
[1727090257458,10.9974,143.38,143.33,7.51]
[1727090258042,10.9974,143.38,143.34,3.4882]
[1727090258549,3.4874,143.38,143.34,3.4882]
[1727090258736,11.73,143.4,143.35,3.4879]
[1727090259140,11.73,143.42,143.33,11.73]
[1727090259541,11.73,143.4,143.32,2.8923]
[1727090260647,108.22022495,143.48,143.32,2.8923]
[1727090260849,11.73,143.41,143.32,4.2839]
[1727090261143,11.73,143.39,143.32,4.2839]
[1727090261950,11.73,143.41,143.32,4.2839]
[1727090262449,11.73,143.41,143.33,11.73]
[1727090262650,11.73,143.43,143.33,11.73]
[1727090263044,11.73,143.43,143.37,3.4875]
[1727090263045,3.4867,143.41,143.37,3.4875]
[1727090263245,11.73,143.43,143.33,11.73]
[1727090263843,3.487,143.4,143.36,3.4877]
[1727090264941,3.487,143.4,143.37,3.4876]
[1727090265142,3.4867,143.41,143.35,11.73]
[1727090265348,11.73,143.43,143.37,3.4875]
[1727090265542,11.73,143.43,143.32,7.81370576]
[1727090265543,11.73,143.43,143.33,11.73]
[1727090265743,3.4869,143.4,143.33,11.73]
[1727090265948,11.73,143.43,143.36,3.4878]
[1727090266255,3.487,143.4,143.36,3.4878]
[1727090266649,11.73,143.43,143.37,3.4875]
[1727090266851,3.4868,143.41,143.37,3.4875]
[1727090267050,3.4868,143.41,143.38,3.4873]
[1727090267452,3.4868,143.41,143.35,11.73]
[1727090267655,3.4869,143.4,143.37,3.4875]
[1727090268046,3.4869,143.4,143.36,3.4878]
[1727090268047,3.487,143.4,143.36,3.4878]
[1727090269052,3.4871,143.39,143.35,3.488]
[1727090269258,11.73,143.41,143.32,4.2839]
[1727090269460,3.4878,143.37,143.32,4.2839]
[1727090269660,11.73,143.39,143.33,3.4885]
[1727090270163,11.73,143.39,143.32,7.7726]
[1727090270367,11.73,143.37,143.28,11.73]
[1727090271765,3.4884,143.34,143.31,3.4889]
[1727090271961,11.73,143.37,143.31,3.4889]
[1727090272561,11.73,143.39,143.3,11.73]
[1727090273573,11.73,143.41,143.32,11.73]
[1727090273772,11.73,143.39,143.3,11.73]
[1727090274073,11.73,143.39,143.32,3.4888]
[1727090274464,3.488,143.36,143.32,3.4888]
[1727090275166,3.488,143.36,143.33,3.4885]
[1727090275769,3.4877,143.37,143.33,3.4885]
[1727090276970,11.73,143.39,143.34,3.4882]
[1727090277476,11.73,143.4,143.34,3.4882]
[1727090277974,3.4877,143.37,143.34,3.4882]
[1727090279877,3.4879,143.36,143.33,3.4885]
[1727090280779,11.73,143.42,143.33,11.73]
[1727090281276,3.4876,143.38,143.35,3.4879]
[1727090282180,11.73,143.42,143.36,3.4877]
[1727090282382,11.73,143.44,143.35,11.73]
[1727090282981,11.73,143.44,143.34,2.7137]
[1727090282982,11.73,143.42,143.34,2.7137]
[1727090283287,3.4881,143.35,143.34,2.7137]
[1727090283486,15.23607202,143.4,143.34,2.7137]
[1727090283783,15.23607202,143.4,143.34,1.3643]
[1727090283979,15.23607202,143.4,143.3,1.4369]
[1727090283980,11.73,143.38,143.3,1.4369]
[1727090284279,11.73,143.38,143.3,2.7952]
[1727090284782,11.73,143.36,143.3,2.7952]
[1727090285485,11.73,143.35,143.26,1.4557]
[1727090285688,3.489,143.32,143.27,2.7952]
[1727090286272,3.4886,143.33,143.27,14.5252]
[1727090286482,11.73,143.38,143.29,11.73]
[1727090287080,6.9716,143.45,143.31,11.73]
[1727090287285,11.73,143.41,143.31,11.73]
[1727090287479,11.73,143.43,143.33,11.73]
[1727090287781,11.73,143.43,143.35,3.4881]
[1727090288187,3.487,143.4,143.37,3.4875]
[1727090288380,11.73,143.43,143.33,13.2032]
[1727090289083,3.4871,143.4,143.36,3.4878]
[1727090289582,11.73,143.43,143.33,13.2032]
[1727090289984,3.4875,143.38,143.34,3.4881]
[1727090290286,3.4875,143.38,143.33,13.2032]
[1727090290287,11.73,143.43,143.33,13.2032]
[1727090290475,3.4871,143.4,143.33,13.2032]
[1727090290676,3.4871,143.4,143.36,3.4877]
[1727090292182,3.4867,143.41,143.38,3.4873]
[1727090292581,3.54889369,143.48,143.39,11.73]
[1727090292886,11.73,143.48,143.39,11.73]
[1727090293189,3.4866,143.42,143.39,11.73]
[1727090293591,3.4866,143.42,143.39,15.2169]
[1727090293783,3.4862,143.43,143.39,11.73]